fUSD/lending_fUSD_20240118
["ID","MTS","AMOUNT","RATE_DAILY","PERIOD"]
[312005197,1705542633931,-204.40930052,0.00018553,2]
[312005198,1705542633940,-698.7047077,0.00018554,2]
[312005199,1705542633967,-546.54532813,0.00018554,2]
[312005201,1705542633979,-522.92646884,0.00018554,2]
[312005202,1705542633988,-227.255148,0.00018555,2]
[312005203,1705542634001,-5216.51009019,0.00018555,2]
[312005204,1705542634012,-160.45443192,0.00018561,2]
[312005205,1705542634021,-160.45443186,0.00019256,2]
[312005206,1705542634031,-2514.97935089,0.00019821,2]
[312005207,1705542634042,-4448.13567168,0.00019821,2]
[312005208,1705542634053,-355.51778442,0.00019821,2]
[312005209,1705542634074,-542.18999,0.00019821,2]
[312005210,1705542634085,-2618.90434994,0.00019821,2]
[312005211,1705542634097,-456.31690773,0.00019821,2]
[312005212,1705542634108,-4482.96214092,0.00019821,2]
[312005213,1705542634124,-15708.28380442,0.00019821,2]
[312005214,1705542634133,-200.0,0.00019847,2]
[312005215,1705542634142,-150.0,0.00019875,2]
[312005216,1705542634152,-23900.0,0.00019876,2]
[312005217,1705542634161,-160.45443186,0.00019951,2]
[312005218,1705542634170,-714.96,0.00020015,2]
[312005219,1705542634179,-296.42,0.00020023,3]
[312005220,1705542634188,-3545.89,0.00020023,2]
[312005221,1705542634197,-206.0,0.00020024,2]
[312005222,1705542634206,-97.286938,0.00020047,2]
[312005223,1705542634218,-631.853062,0.00020047,2]
[312005224,1705542634227,-150.0,0.00020082,2]
[312005225,1705542634236,-40.12399365,0.00020096,2]
[312005238,1705542634505,-551.95024485,0.00020096,2]
[312005239,1705542634517,-290.8157615,0.00020096,2]
[312005240,1705542634526,-726.49,0.00020134,2]
[312005241,1705542634535,-21.06494483,0.00020214,2]
[312005242,1705542634547,-533.92505517,0.00020214,2]
[312005243,1705542634557,-69.46089136,0.00020249,2]
[312005244,1705542634578,-645.77910864,0.00020249,2]
[312005245,1705542634587,-164.89,0.00020254,2]
[312005246,1705542634597,-150.0,0.00020254,2]
[312005247,1705542634606,-69.88124957,0.00020254,2]
[312005248,1705542634619,-149.83875043,0.00020254,2]
[312005249,1705542634628,-185.77,0.00020254,2]
[312005250,1705542634637,-183.18966631,0.00020254,2]
[312005251,1705542634655,-436.46033369,0.00020254,2]
[312005252,1705542634665,-157.28,0.00020254,2]
[312005253,1705542634675,-161.83,0.00020276,2]
[312005254,1705542634684,-159.96,0.00020406,2]
[312005255,1705542634693,-165.27,0.00020456,2]
[312005256,1705542634702,-279.13,0.00020548,2]
[312005257,1705542634711,-160.45443186,0.00020646,2]
[312005258,1705542634720,-679.61523445,0.0002065,2]
[312005259,1705542634732,-320.38476555,0.0002065,2]
[312005260,1705542634741,-9.58487602,0.00020672,2]
[312005261,1705542634752,-150.37512398,0.00020672,2]
[312005262,1705542634761,-164.89,0.00020704,2]
[312005263,1705542634771,-157.28,0.00020929,2]
[312005264,1705542634780,-159.96,0.00020938,2]
[312005265,1705542634788,-222.07718138,0.00021074,2]
[312005266,1705542634800,-300.0,0.00021074,2]
[312005267,1705542634814,-360.81281862,0.00021074,2]
[312005268,1705542634823,-164.89,0.00021154,2]
[312005269,1705542634833,-159.96,0.00021203,2]
[312005270,1705542634842,-160.45443186,0.00021341,2]
[312005271,1705542634852,-159.96,0.00021469,2]
[312005272,1705542634861,-3908.3124,0.00021514,2]
[312005273,1705542634870,-1884.9818,0.00021514,2]
[312005274,1705542634880,-2997.8184,0.00021514,2]
[312005275,1705542634889,-161.83,0.00021547,2]
[312005276,1705542634899,-238.89881339,0.00021578,2]
[312005277,1705542634908,-164.89,0.00021604,2]
[312005278,1705542634917,-157.28,0.00021604,2]
[312005279,1705542634926,-197.57842176,0.00021612,2]
[312005280,1705542634937,-196.95831356,0.00021612,2]
[312005281,1705542634946,-313.40643202,0.00021612,2]
[312005282,1705542634955,-1047.23667708,0.00021613,2]
[312005283,1705542635199,-150.0,0.00021613,2]
[312005284,1705542635209,-1000.0,0.00021614,2]
[312005285,1705542635218,-500.0,0.00021614,2]
[312005286,1705542635227,-698.43328518,0.00021614,2]
[312005287,1705542635239,-307.51494231,0.00021614,2]
[312005288,1705542635250,-1426.73096217,0.00021614,2]
[312005289,1705542635269,-3747.09115664,0.00021614,2]
[312005312,1705542637968,-474.78760516,0.00021614,2]
[312005314,1705542638024,-723.63689892,0.00021614,2]
[312005315,1705542638035,-17732.93323572,0.00021614,2]
[312005316,1705542638197,-2250.90623904,0.00021614,2]
[312005317,1705542638256,-10638.88797198,0.00021614,2]
[312005318,1705542638368,-3627.95124371,0.00021614,2]
[312005531,1705542640484,-21357.63,0.00021614,2]
[312005539,1705542640540,-13594.63952765,0.00021614,2]
[312005541,1705542640552,-523.56941715,0.00021614,2]
[312005547,1705542640598,-7056.1140353,0.00021614,2]
[312005561,1705542640718,-9245.30500987,0.00021614,2]
[312005563,1705542640730,-463.53298113,0.00021614,2]
[312005565,1705542640741,-1612.60638186,0.00021614,2]
[312005568,1705542640753,-398.84197346,0.00021614,2]
[312005570,1705542640764,-96323.55233652,0.00021614,2]
[312005573,1705542640779,-2719.65690231,0.00021614,2]
[312005637,1705542641390,-648.0619588,0.00021614,2]
[312005638,1705542641401,-560.56471214,0.00021614,2]
[312005796,1705542642934,-48867.05122298,0.00021614,2]
[312005798,1705542642944,-6194.0,0.00021678,2]
[312005800,1705542642953,-1265.0,0.00021698,2]
[312005802,1705542642962,-238.89881334,0.00021767,2]
[312005804,1705542642972,-150.0,0.00021801,2]
[312005806,1705542642982,-2757.92237078,0.00021817,2]
[312005819,1705542643101,-12452.80788999,0.00021817,2]
[312005821,1705542643113,-2388.40938092,0.00021817,2]
[312005828,1705542643162,-9687.8,0.00021817,2]
[312005835,1705542643222,-5688.8113681,0.00021817,2]
[312005843,1705542643279,-352.73851809,0.00021817,2]
[312005845,1705542643290,-15224.45529455,0.00021817,2]
[312006091,1705542645983,-234.39616539,0.00021613,2]
[312006092,1705542645993,-922.68729131,0.00021613,5]
[312006093,1705542646006,-654.54406327,0.00021817,2]
[312006094,1705542646019,-6347.5111143,0.00021817,2]
[312006095,1705542646028,-256.0722,0.00021817,2]
[312006096,1705542646037,-184.14726143,0.0002184,2]
[312006097,1705542646046,-152.81639396,0.0002184,2]
[312006098,1705542646056,-202.0,0.00021863,2]
[312006099,1705542646066,-250.0,0.000219,2]
[312006100,1705542646077,-1217.08,0.000219,2]
[312006101,1705542646086,-167.17964832,0.00021907,2]
[312006102,1705542646096,-3190.67771766,0.00021916,2]
[312006103,1705542646106,-609.96761514,0.00021917,2]
[312006104,1705542646115,-388.42996256,0.00021917,2]
[312006105,1705542646124,-521.88622826,0.00021917,2]
[312006106,1705542646133,-506.42445266,0.00021917,2]
[312006107,1705542646142,-510.62685114,0.00021917,2]
[312006108,1705542646151,-509.30638318,0.00021917,2]
[312006109,1705542646160,-378.66834252,0.00021917,2]
[312006110,1705542646169,-517.58627444,0.00021917,2]
[312006111,1705542646179,-478.31003167,0.00021917,2]
[312006112,1705542646188,-395.08720872,0.00021917,2]
[312006113,1705542646200,-104.91279128,0.00021917,2]
[312006114,1705542646209,-500.0,0.00021917,2]
[312006115,1705542646219,-500.0,0.00021917,2]
[312006116,1705542646228,-503.60344594,0.00021917,2]
[312006117,1705542646238,-502.99149458,0.00021917,2]
[312006118,1705542646247,-251.29944484,0.00021917,2]
[312006119,1705542646258,-262.0687998,0.00021917,2]
[312006120,1705542646267,-514.27212379,0.00021917,2]
[312006121,1705542646277,-500.0,0.00021917,2]
[312006122,1705542646286,-611.9915032,0.00021917,2]
[312006123,1705542646296,-500.0,0.00021917,2]
[312006124,1705542646305,-500.0,0.00021917,2]
[312006125,1705542646315,-500.0,0.00021917,2]
[312006126,1705542646326,-531.81494573,0.00021917,2]
[312006127,1705542646340,-500.0,0.00021917,2]
[312006128,1705542646349,-500.0,0.00021917,2]
[312006129,1705542646358,-500.0,0.00021917,2]
[312006130,1705542646367,-498.41098112,0.00021917,2]
[312006132,1705542646376,-208.36855947,0.00021917,2]
[312006133,1705542646385,-502.48211755,0.00021917,2]
[312006134,1705542646395,-500.0,0.00021917,2]
[312006135,1705542646404,-344.86616911,0.00021917,2]
[312006136,1705542646413,-508.52667865,0.00021917,2]
[312006137,1705542646423,-509.89648996,0.00021917,2]
[312006138,1705542646432,-504.79476829,0.00021917,2]
[312006139,1705542646442,-522.25802821,0.00021917,2]
[312006140,1705542646451,-500.0,0.00021917,2]
[312006141,1705542646460,-503.56153524,0.00021917,2]
[312006142,1705542646469,-512.38139699,0.00021917,2]
[312006143,1705542646478,-212.94027612,0.00021917,2]
[312006144,1705542646487,-552.36419204,0.00021917,2]
[312006145,1705542646496,-502.4940528,0.00021917,2]
[312006146,1705542646506,-500.0,0.00021917,2]
[312006147,1705542646515,-500.0,0.00021917,2]
[312006148,1705542646524,-500.0,0.00021917,2]
[312006149,1705542646534,-500.0,0.00021917,2]
[312006150,1705542646544,-514.96852285,0.00021917,2]
[312006151,1705542646553,-500.0,0.00021917,2]
[312006152,1705542646562,-500.0,0.00021917,2]
[312006153,1705542646572,-500.0,0.00021917,2]
[312006154,1705542646581,-509.48100973,0.00021917,2]
[312006155,1705542646590,-500.0,0.00021917,2]
[312006156,1705542646600,-515.18141416,0.00021917,2]
[312006157,1705542646609,-544.02474645,0.00021917,2]
[312006158,1705542646618,-504.71841913,0.00021917,2]
[312006159,1705542646627,-298.93105774,0.00021917,2]
[312006160,1705542646637,-406.54695889,0.00021917,2]
[312006161,1705542646646,-500.0,0.00021917,2]
[312006162,1705542646655,-500.0,0.00021917,2]
[312006163,1705542646665,-500.0,0.00021917,2]
[312006164,1705542646674,-516.91985177,0.00021917,2]
[312006165,1705542646683,-500.0,0.00021917,2]
[312006166,1705542646692,-500.0,0.00021917,2]
[312006167,1705542646702,-397.25837006,0.00021917,2]
[312006168,1705542646711,-201.45626739,0.00021917,2]
[312006169,1705542646721,-313.61431322,0.00021917,2]
[312006170,1705542646730,-508.66538159,0.00021917,2]
[312006171,1705542646740,-518.7078936,0.00021917,2]
[312006172,1705542646749,-505.67056144,0.00021917,2]
[312006173,1705542646758,-500.0,0.00021917,2]
[312006174,1705542646768,-500.0,0.00021917,2]
[312006175,1705542646777,-500.0,0.00021917,2]
[312006176,1705542646787,-547.2525171,0.00021917,2]
[312006177,1705542646796,-240.81806991,0.00021917,2]
[312006178,1705542646805,-500.0,0.00021917,2]
[312006179,1705542646814,-511.00266708,0.00021917,2]
[312006180,1705542646826,-500.0,0.00021917,2]
[312006181,1705542646835,-504.26908875,0.00021917,2]
[312006182,1705542646844,-500.0,0.00021917,2]
[312006183,1705542646857,-500.0,0.00021917,2]
[312006184,1705542646866,-533.13,0.00021917,2]
[312006185,1705542646876,-328.17167871,0.00021917,2]
[312006186,1705542646885,-503.27571148,0.00021917,2]
[312006187,1705542646894,-285.11515623,0.00021917,2]
[312006188,1705542646904,-500.0,0.00021917,2]
[312006189,1705542646914,-79.34207465,0.00021917,2]
[312006190,1705542646929,-376.18208216,0.00021917,2]
[312006192,1705542800482,334.0,0.0003,120]
[312006209,1705543194595,583.85,0.00018483,2]
[312006212,1705543612204,380.61189773,0.0003,120]
[312006213,1705543641570,584.64,0.00018353,2]
[312006294,1705543748662,155.0,0.00018353,2]
[312006295,1705543749194,209.11934277,0.00018353,2]
[312006296,1705543751118,-216.0,0.0002,7]
[312006297,1705543751139,-33.54485644,0.0002,2]
[312006298,1705543754472,2035.57999283,0.00018169,2]
[312006299,1705543756935,2471.37061823,0.00018353,2]
[312006300,1705543756959,2720.86807585,0.00018353,2]
[312006301,1705543759603,266.250047,0.00018353,2]
[312006302,1705543759640,306.04076251,0.00018353,2]
[312006303,1705543760215,11047.85941908,0.00018353,2]
[312006304,1705543760319,402.36728768,0.00017802,2]
[312006305,1705543761163,243.7598818,0.00018353,2]
[312006306,1705543766635,204.92281303,0.00018353,2]
[312006307,1705543774323,402.36728768,0.00017802,2]
[312006308,1705543776765,4050.13581664,0.00018353,2]
[312006309,1705543776794,1894.3324045,0.00018353,2]
[312006310,1705543790323,312.3505047,0.00017802,2]
[312006311,1705543790719,220.31493018,0.00018353,2]
[312006312,1705543796786,1894.3324045,0.00018353,2]
[312006313,1705543802860,150.0,0.00018353,2]
[312006314,1705543803068,150.0,0.00018353,2]
[312006315,1705543803255,295.89325457,0.00018353,2]
[312006316,1705543805323,155.0,0.00018353,2]
[312006317,1705543806713,286.73207591,0.00018353,2]
[312006318,1705543812796,454.70649829,0.00018353,2]
[312006319,1705543817304,156.43871049,0.00018353,2]
[312006324,1705543832140,-300.0,0.00019999,2]
[312006325,1705543832151,-410.99459927,0.00019999,2]
[312006326,1705543832161,-5.2418527,0.0002,2]
[312006327,1705543832172,-473.60372956,0.0002,2]
[312006328,1705543832197,-210.8795613,0.0002,2]
[312006329,1705543832206,-475.97282458,0.0002,2]
[312006330,1705543832218,-248.85717542,0.0002,2]
[312006331,1705543832227,-952.09,0.00020212,2]
[312006332,1705543832237,-280.92,0.00020254,2]
[312006333,1705543832246,-500.0,0.00020274,2]
[312006334,1705543832256,-191.73,0.00020284,10]
[312006335,1705543832265,-151.75,0.00020301,2]
[312006336,1705543832275,-1564.17,0.00020377,2]
[312006337,1705543832284,-174.56,0.00020381,2]
[312006338,1705543832294,-300.0,0.00020386,2]
[312006339,1705543832303,-150.0,0.00020386,2]
[312006340,1705543832312,-150.0,0.00020386,2]
[312006341,1705543832321,-762.33748153,0.00020387,2]
[312006342,1705543832333,-9836.68309227,0.00020387,2]
[312006343,1705543832345,-10527.0094262,0.00020387,2]
[312006344,1705543832356,-150.0,0.00020401,2]
[312006345,1705543832366,-163.3,0.00020446,2]
[312006346,1705543832377,-158.03,0.00020455,2]
[312006347,1705543832387,-155.98,0.00020509,2]
[312006348,1705543832396,-151.75,0.00020527,2]
[312006349,1705543832405,-159.69,0.00020586,2]
[312006350,1705543832414,-584.64,0.00020617,2]
[312006351,1705543832423,-4940.6421,0.00020655,2]
[312006352,1705543832433,-1000.0,0.00020698,2]
[312006353,1705543832442,-151.75,0.00020752,2]
[312006354,1705543832453,-158.03,0.00020864,2]
[312006355,1705543832462,-155.98,0.00020865,2]
[312006356,1705543832471,-151.75,0.00020978,2]
[312006357,1705543832481,-710.29,0.00021019,2]
[312006358,1705543832490,-722.33,0.00021019,2]
[312006359,1705543832499,-716.01,0.0002102,2]
[312006360,1705543832508,-725.74,0.0002102,2]
[312006361,1705543832517,-723.15,0.00021021,2]
[312006362,1705543832526,-715.04,0.00021023,2]
[312006363,1705543832535,-713.23,0.00021027,2]
[312006364,1705543832545,-731.98,0.00021035,2]
[312006365,1705543832554,-952.09,0.0002119,2]
[312006366,1705543832563,-710.5,0.00021198,2]
[312006367,1705543832572,-151.75,0.00021203,2]
[312006368,1705543832580,-150.0,0.00021217,2]
[312006369,1705543832590,-155.98,0.00021221,2]
[312006370,1705543832599,-150.0,0.00021223,2]
[312006371,1705543832608,-158.03,0.00021273,2]
[312006372,1705543832617,-159.13,0.00021286,2]
[312006373,1705543832626,-150.0,0.00021307,2]
[312006374,1705543832636,-150.0,0.00021352,2]
[312006375,1705543832645,-150.0,0.00021402,2]
[312006376,1705543832654,-151.75,0.00021429,2]
[312006377,1705543832663,-1075.6747,0.00021514,2]
[312006378,1705543832672,-500.0,0.00021516,2]
[312006379,1705543832682,-155.98,0.00021577,2]
[312006380,1705543832691,-325.65543934,0.00021597,2]
[312006381,1705543832700,-1088.72849127,0.00021602,2]
[312006382,1705543832710,-150.0,0.00021603,2]
[312006383,1705543832719,-230.4386661,0.00021612,2]
[312006384,1705543832728,-151.75,0.00021655,2]
[312006385,1705543832738,-150.0,0.0002168,2]
[312006386,1705543832747,-158.03,0.00021682,2]
[312006387,1705543832757,-738.06,0.00021698,2]
[312006388,1705543832766,-150.0,0.00021714,2]
[312006389,1705543832775,-22414.70761388,0.00021717,2]
[312006390,1705543832787,-564.28815814,0.00021717,2]
[312006391,1705543832807,-630.06985298,0.00021717,2]
[312006392,1705543832829,-1021.05941558,0.00021717,2]
[312006393,1705543832841,-13239.3682742,0.00021717,2]
[312006413,1705543838244,-206.0,0.00019355,2]
[312006414,1705543838254,-4371.48848522,0.00021717,2]
[312006416,1705543838263,-1000.0,0.00021717,2]
[312006418,1705543838273,-544.71994518,0.00021717,2]
[312006420,1705543838283,-176.3,0.0002174,2]
[312006422,1705543838292,-151.61439309,0.0002174,2]
[312006424,1705543838302,-301.59078083,0.00021815,2]
[312006426,1705543838311,-156.22957668,0.00021815,2]
[312006428,1705543838322,-221.88007287,0.00021815,2]
[312006430,1705543838331,-194.87707932,0.00021815,2]
[312006432,1705543838341,-409.11878717,0.00021815,2]
[312006434,1705543838351,-155.35308292,0.00021815,2]
[312006437,1705543838363,-10834.70810837,0.00021815,2]
[312006439,1705543838373,-4651.80418903,0.00021815,2]
[312006441,1705543838382,-525.77958587,0.00021815,2]
[312006442,1705543838392,-2327.90563907,0.00021815,2]
[312006443,1705543838401,-328.41331497,0.00021815,2]
[312006444,1705543838410,-1207.73835339,0.00021815,2]
[312006445,1705543838420,-10559.0080186,0.00021815,2]
[312006446,1705543838429,-1107.88736037,0.00021816,2]
[312006447,1705543838439,-158.99522941,0.00021816,2]
[312006448,1705543838449,-150.0,0.00021816,2]
[312006449,1705543838458,-250.0,0.00021817,2]
[312006450,1705543838467,-245000.0,0.00021817,2]
[312006451,1705543838476,-5000.0,0.00021817,2]
[312006452,1705543838485,-55555.0,0.00021817,2]
[312006453,1705543838494,-203.35626574,0.00021817,2]
[312006454,1705543838503,-216.43242103,0.00021817,2]
[312006455,1705543838512,-151.75,0.0002188,2]
[312006456,1705543838521,-544.71994516,0.00021886,2]
[312006457,1705543838531,-250.0,0.000219,2]
[312006458,1705543838541,-486.66400945,0.000219,2]
[312006459,1705543838550,-1666.91690652,0.000219,2]
[312006461,1705543838559,-2889.52,0.000219,2]
[312006463,1705543838569,-195.04292305,0.00021907,2]
[312006465,1705543838579,-547.49384824,0.00021915,2]
[312006467,1705543838588,-2133.61532505,0.00021916,2]
[312006469,1705543838599,-1748.00128174,0.00021916,2]
[312006471,1705543838608,-484.0,0.00021917,2]
[312006473,1705543838618,-502.77860806,0.00021917,2]
[312006475,1705543838627,-502.92939674,0.00021917,2]
[312006477,1705543838636,-502.62437428,0.00021917,2]
[312006479,1705543838645,-518.44882121,0.00021917,2]
[312006481,1705543838654,-506.17023479,0.00021917,2]
[312006483,1705543838664,-521.12557148,0.00021917,2]
[312006485,1705543838673,-504.82813568,0.00021917,2]
[312006487,1705543838682,-342.22464451,0.00021917,2]
[312006489,1705543838692,-588.10183598,0.00021917,2]
[312006491,1705543838701,-500.0,0.00021917,2]
[312006493,1705543838710,-523.54715595,0.00021917,2]
[312006495,1705543838719,-363.22004169,0.00021917,2]
[312006497,1705543838728,-500.0,0.00021917,2]
[312006499,1705543838739,-502.51991684,0.00021917,2]
[312006501,1705543838752,-516.36570654,0.00021917,2]
[312006503,1705543838761,-555.55886436,0.00021917,2]
[312006505,1705543838770,-514.81457022,0.00021917,2]
[312006507,1705543838780,-517.57228181,0.00021917,2]
[312006509,1705543838789,-581.73909521,0.00021917,2]
[312006511,1705543838798,-264.50122742,0.00021917,2]
[312006513,1705543838807,-511.6735904,0.00021917,2]
[312006515,1705543838818,-500.0,0.00021917,2]
[312006518,1705543838826,-500.0,0.00021917,2]
[312006520,1705543838836,-528.22329734,0.00021917,2]
[312006522,1705543838845,-500.0,0.00021917,2]
[312006524,1705543838854,-504.73687973,0.00021917,2]
[312006553,1705543839167,-516.94575743,0.00021917,2]
[312006554,1705543839177,-500.0,0.00021917,2]
[312006555,1705543839186,-500.0,0.00021917,2]
[312006557,1705543839195,-508.99249322,0.00021917,2]
[312006559,1705543839204,-500.0,0.00021917,2]
[312006561,1705543839213,-500.0,0.00021917,2]
[312006563,1705543839222,-500.0,0.00021917,2]
[312006565,1705543839231,-602.69693597,0.00021917,2]
[312006567,1705543839240,-510.93239127,0.00021917,2]
[312006569,1705543839249,-508.70371294,0.00021917,2]
[312006571,1705543839258,-500.0,0.00021917,2]
[312006573,1705543839267,-500.0,0.00021917,2]
[312006575,1705543839276,-514.41450511,0.00021917,2]
[312006576,1705543839285,-500.0,0.00021917,2]
[312006579,1705543839294,-505.45061327,0.00021917,2]
[312006581,1705543839303,-508.89480138,0.00021917,2]
[312006583,1705543839312,-506.79198491,0.00021917,2]
[312006585,1705543839322,-500.0,0.00021917,2]
[312006587,1705543839334,-500.0,0.00021917,2]
[312006589,1705543839344,-506.20471805,0.00021917,2]
[312006591,1705543839357,-500.0,0.00021917,2]
[312006593,1705543839366,-519.90741871,0.00021917,2]
[312006595,1705543839376,-500.0,0.00021917,2]
[312006597,1705543839385,-507.78109516,0.00021917,2]
[312006599,1705543839394,-500.0,0.00021917,2]
[312006601,1705543839403,-520.1,0.00021917,2]
[312006603,1705543839412,-509.62067534,0.00021917,2]
[312006605,1705543839421,-551.95163508,0.00021917,2]
[312006607,1705543839431,-507.64166401,0.00021917,2]
[312006609,1705543839440,-500.0,0.00021917,2]
[312006611,1705543839449,-504.06778232,0.00021917,2]
[312006613,1705543839458,-500.0,0.00021917,2]
[312006615,1705543839467,-500.0,0.00021917,2]
[312006617,1705543839477,-500.0,0.00021917,2]
[312006619,1705543839486,-500.0,0.00021917,2]
[312006621,1705543839495,-503.88300545,0.00021917,2]
[312006623,1705543839504,-261.81439985,0.00021917,2]
[312006625,1705543839512,-509.29623299,0.00021917,2]
[312006627,1705543839522,-500.0,0.00021917,2]
[312006629,1705543839531,-500.0,0.00021917,2]
[312006631,1705543839540,-604.29667172,0.00021917,2]
[312006633,1705543839549,-500.0,0.00021917,2]
[312006635,1705543839558,-507.98660197,0.00021917,2]
[312006637,1705543839567,-509.18120147,0.00021917,2]
[312006639,1705543839576,-507.51200931,0.00021917,2]
[312006641,1705543839585,-541.09634369,0.00021917,2]
[312006643,1705543839594,-500.0,0.00021917,2]
[312006645,1705543839604,-500.0,0.00021917,2]
[312006647,1705543839613,-526.17757329,0.00021917,2]
[312006649,1705543839622,-414.10095025,0.00021917,2]
[312006651,1705543839631,-500.0,0.00021917,2]
[312006653,1705543839640,-511.44933147,0.00021917,2]
[312006655,1705543839649,-508.82994813,0.00021917,2]
[312006657,1705543839658,-500.0,0.00021917,2]
[312006659,1705543839667,-493.88693711,0.00021917,2]
[312006661,1705543839676,-512.40839726,0.00021917,2]
[312006663,1705543839686,-500.0,0.00021917,2]
[312006665,1705543839695,-500.0,0.00021917,2]
[312006667,1705543839704,-505.02392726,0.00021917,2]
[312006669,1705543839713,-500.0,0.00021917,2]
[312006671,1705543839722,-512.48659884,0.00021917,2]
[312006673,1705543839731,-561.12387051,0.00021917,2]
[312006675,1705543839741,-383.64766056,0.00021917,2]
[312006677,1705543839750,-506.92873585,0.00021917,2]
[312006679,1705543839759,-500.0,0.00021917,2]
[312006681,1705543839768,-505.02206165,0.00021917,2]
[312006683,1705543839777,-160.37663597,0.00021917,2]
[312006685,1705543839786,-507.99306264,0.00021917,2]
[312006687,1705543839795,-500.0,0.00021917,2]
[312006689,1705543839804,-502.19919613,0.00021917,2]
[312006691,1705543839813,-500.0,0.00021917,2]
[312006693,1705543839822,-512.91122678,0.00021917,2]
[312006695,1705543839831,-509.55714894,0.00021917,2]
[312006697,1705543839840,-500.0,0.00021917,2]
[312006699,1705543839849,-501.47743158,0.00021917,2]
[312006701,1705543839858,-500.0,0.00021917,2]
[312006703,1705543839866,-500.0,0.00021917,2]
[312006705,1705543839876,-500.0,0.00021917,2]
[312006707,1705543839885,-299.62610167,0.00021917,2]
[312006709,1705543839893,-506.7134981,0.00021917,2]
[312006711,1705543839903,-508.11790931,0.00021917,2]
[312006713,1705543839912,-510.42691432,0.00021917,2]
[312006715,1705543839921,-535.45428811,0.00021917,2]
[312006717,1705543839930,-503.6672686,0.00021917,2]
[312006719,1705543839939,-515.46546814,0.00021917,2]
[312006721,1705543839948,-500.0,0.00021917,2]
[312006723,1705543839957,-614.58999377,0.00021917,2]
[312006725,1705543839966,-504.13868597,0.00021917,2]
[312006727,1705543839974,-500.0,0.00021917,2]
[312006729,1705543839983,-500.0,0.00021917,2]
[312006731,1705543839992,-506.05589155,0.00021917,2]
[312006733,1705543840000,-500.0,0.00021917,2]
[312006735,1705543840009,-508.41821335,0.00021917,2]
[312006737,1705543840018,-506.25985988,0.00021917,2]
[312006739,1705543840027,-507.65120885,0.00021917,2]
[312006741,1705543840035,-500.0,0.00021917,2]
[312006743,1705543840044,-513.2047445,0.00021917,2]
[312006745,1705543840053,-515.93400588,0.00021917,2]
[312006747,1705543840062,-529.07942944,0.00021917,2]
[312006749,1705543840071,-505.6557991,0.00021917,2]
[312006751,1705543840080,-500.0,0.00021917,2]
[312006753,1705543840090,-502.82485402,0.00021917,2]
[312006755,1705543840099,-500.0,0.00021917,2]
[312006757,1705543840108,-505.73722369,0.00021917,2]
[312006759,1705543840118,-516.75200205,0.00021917,2]
[312006761,1705543840127,-1006.29283364,0.00021917,2]
[312006763,1705543840136,-512.61974942,0.00021917,2]
[312006765,1705543840145,-505.19536961,0.00021917,2]
[312006767,1705543840154,-500.0,0.00021917,2]
[312006769,1705543840163,-525.51829378,0.00021917,2]
[312006772,1705543840172,-500.0,0.00021917,2]
[312006774,1705543840182,-502.15347886,0.00021917,2]
[312006776,1705543840191,-504.29563773,0.00021917,2]
[312006778,1705543840200,-500.0,0.00021917,2]
[312006780,1705543840209,-171.39707823,0.00021917,2]
[312006782,1705543840218,-509.14817403,0.00021917,2]
[312006784,1705543840227,-500.0,0.00021917,2]
[312006786,1705543840236,-516.3993906,0.00021917,2]
[312006788,1705543840245,-510.62067137,0.00021917,2]
[312006790,1705543840254,-510.94790962,0.00021917,2]
[312006792,1705543840263,-500.0,0.00021917,2]
[312006794,1705543840272,-500.0,0.00021917,2]
[312006796,1705543840282,-408.71594263,0.00021917,2]
[312006798,1705543840291,-500.0,0.00021917,2]
[312006800,1705543840300,-500.0,0.00021917,2]
[312006802,1705543840310,-514.6960497,0.00021917,2]